bitfinex-derivatives/quotes_SOLF0:USTF0_20250206
["timestamp","ask_amount","ask_price","bid_price","bid_amount"]
[1738829210799,13.24832611,202.12,202.07,0.03409845]
[1738829211198,4.9467,202.09,202.07,0.03409845]
[1738829211497,13.24832611,202.12,202.07,0.03409845]
[1738829211997,4.9468,202.08,202.07,0.03409845]
[1738829212502,0.03180864,202.12,202.07,0.03409845]
[1738829213098,4.97780864,202.12,202.07,0.03409845]
[1738829213698,0.03180864,202.12,202.07,0.03409845]
[1738829215102,0.03180864,202.12,202.08,13.21651747]
[1738829215492,20.35401987,202.19,202.11,13.21651747]
[1738829215897,20.35401987,202.19,202.09,1.5595]
[1738829215898,20.35401987,202.19,202.14,13.21651747]
[1738829216506,20.35401987,202.23,202.14,13.21651747]
[1738829217006,0.03207713,202.19,202.14,13.25064351]
[1738829218706,0.03207713,202.19,202.14,18.19584351]
[1738829218905,0.03207713,202.19,202.14,13.25064351]
[1738829219306,0.03207713,202.19,202.14,18.19594351]
[1738829219606,0.03207713,202.19,202.14,13.25064351]
[1738829220207,0.03207713,202.19,202.14,0.03412604]
[1738829220601,4.9443,202.18,202.14,0.03412604]
[1738829220802,0.03207713,202.19,202.14,0.03412604]
[1738829223308,4.9448,202.17,202.14,0.03412604]
[1738829224404,4.945,202.15,202.14,0.03412604]
[1738829226402,4.945,202.15,202.14,2.604e-05]
[1738829228911,3.54,202.18,202.14,2.604e-05]
[1738829229107,0.03207713,202.19,202.14,2.604e-05]
[1738829232713,0.03207713,202.19,202.14,4.94522604]
[1738829232909,0.03207713,202.19,202.14,2.604e-05]
[1738829233117,0.03207713,202.19,202.16,13.21651747]
[1738829233811,2.7845,202.31,202.16,13.21651747]
[1738829234016,2.7845,202.31,202.19,13.21651747]
[1738829234214,2.7845,202.31,202.2,4.9437]
[1738829235007,0.0349931,202.28,202.23,0.03492596]
[1738829235216,4.9422,202.27,202.23,0.03492596]
[1738829235612,0.0349931,202.28,202.23,0.03492596]
[1738829236215,4.9768931,202.28,202.23,0.03492596]
[1738829236815,0.0349931,202.28,202.23,0.03492596]
[1738829237022,4.9422,202.27,202.23,0.03492596]
[1738829237420,0.0349931,202.28,202.23,0.03492596]
[1738829237625,4.9770931,202.28,202.23,0.03492596]
[1738829239324,0.0349931,202.28,202.23,0.03492596]
[1738829240026,4.9768931,202.28,202.23,0.03492596]
[1738829241026,0.0349931,202.28,202.23,0.03492596]
[1738829241327,4.9421,202.27,202.23,0.03492596]
[1738829243532,0.0349931,202.28,202.23,0.03492596]
[1738829244227,4.9426,202.25,202.23,0.03492596]
[1738829244432,0.0349931,202.28,202.23,0.03492596]
[1738829245331,4.9422,202.27,202.23,0.03492596]
[1738829247133,0.0349931,202.28,202.23,0.03492596]
[1738829247835,4.9428,202.24,202.23,0.03492596]
[1738829251630,4.9428,202.24,202.23,2.596e-05]
[1738829256743,13.39625564,202.24,202.23,2.596e-05]
[1738829258742,4.9428,202.24,202.23,2.596e-05]
[1738829259746,0.0349931,202.28,202.23,2.596e-05]
[1738829259942,0.0349931,202.28,202.23,13.20392061]
[1738829260145,0.0349931,202.28,202.26,13.20389465]
[1738829260750,20.35401987,202.35,202.26,13.20389465]
[1738829261445,25.29431987,202.35,202.26,13.20389465]
[1738829261953,25.29431987,202.35,202.26,16.27349465]
[1738829262138,0.0312154,202.33,202.28,0.03523906]
[1738829262344,4.9720154,202.33,202.28,0.03523906]
[1738829263549,13.23511005,202.33,202.28,0.03523906]
[1738829264750,4.941,202.32,202.28,0.03523906]
[1738829266251,13.23511005,202.33,202.28,0.03523906]
[1738829266453,4.9415,202.3,202.28,0.03523906]
[1738829267450,4.9411,202.32,202.28,0.03523906]
[1738829268657,0.0312154,202.33,202.28,0.03523906]
[1738829269455,4.9409,202.32,202.28,0.03523906]
[1738829269658,0.0312154,202.33,202.28,0.03523906]
[1738829270055,4.9409,202.32,202.28,0.03523906]
[1738829270757,0.0312154,202.33,202.28,0.03523906]
[1738829270946,4.9719154,202.33,202.28,0.03523906]
[1738829271146,13.23511005,202.33,202.28,0.03523906]
[1738829271349,4.9409,202.32,202.28,0.03523906]
[1738829272159,4.9414,202.3,202.28,0.03523906]
[1738829272758,13.20389465,202.3,202.28,0.03523906]
[1738829272954,4.9416,202.29,202.28,0.03523906]
[1738829273554,4.9416,202.29,202.28,3.906e-05]
[1738829273856,4.9416,202.29,202.15,1.4972]
[1738829273857,13.20389465,202.3,202.15,1.4972]
[1738829274056,13.20389465,202.27,202.16,1.4721]
[1738829274258,13.20389465,202.27,202.16,6.4169]
[1738829274453,18.14619465,202.27,202.16,1.4721]
[1738829274857,18.14619465,202.27,202.18,4.9443]
[1738829275057,0.03391153,202.24,202.19,0.03345933]
[1738829276058,0.03391153,202.24,202.19,4.97755933]
[1738829276660,0.03391153,202.24,202.19,0.03345933]
[1738829277861,0.03391153,202.24,202.2,4.9437]
[1738829278261,0.03391153,202.24,202.2,6.5017]
[1738829278662,0.03391153,202.24,202.2,1.558]
[1738829280566,0.03391153,202.24,202.19,0.03345933]
[1738829283867,4.9431,202.23,202.19,0.03345933]
[1738829284660,0.03391153,202.24,202.19,0.03345933]
[1738829284661,0.03391153,202.24,202.23,4.9431]
[1738829284860,0.03391153,202.24,202.19,0.03345933]
[1738829285171,0.03391153,202.24,202.21,4.9434]
[1738829285371,0.03391153,202.24,202.19,0.03345933]
[1738829286475,4.9433,202.22,202.19,0.03345933]
[1738829287370,0.03391153,202.24,202.19,0.03345933]
[1738829289275,4.9435,202.22,202.19,0.03345933]
[1738829290071,0.03391153,202.24,202.19,0.03345933]
[1738829290976,4.97681153,202.24,202.19,0.03345933]
[1738829291880,4.9438,202.2,202.19,0.03345933]
[1738829295086,4.9438,202.2,202.19,5.933e-05]
[1738829300782,13.23780618,202.24,202.19,5.933e-05]
[1738829300984,0.03391153,202.24,202.19,5.933e-05]
[1738829301884,4.9431,202.23,202.19,5.933e-05]
[1738829304292,10.64041987,202.3,202.2,3.7]
[1738829304499,54.27738634,202.31,202.29,8.45047913]
[1738829304793,82.12943549,202.33,202.3,13.17899844]
[1738829305289,82.12943549,202.33,202.31,4.9411]
[1738829305688,136.91812549,202.34,202.3,13.17899844]
[1738829305689,0.035733,202.34,202.3,13.17899844]
[1738829307896,0.035733,202.34,202.32,4.9408]
[1738829309700,4.9361,202.52,202.33,30.03799688]
[1738829309897,1.5449,202.56,202.46,13.17899844]
[1738829310293,1.5449,202.56,202.49,4.9367]
[1738829310801,0.0320282,202.55,202.5,0.0325611]
[1738829311194,4.9357,202.54,202.5,0.0325611]
[1738829311398,0.0320282,202.55,202.5,0.0325611]
[1738829311800,13.17899844,202.53,202.4,13.17899844]
[1738829312901,0.03633272,202.49,202.44,0.03487514]
[1738829314500,0.03633272,202.49,202.45,4.9377]
[1738829314702,0.03633272,202.49,202.44,0.03487514]
[1738829314902,0.03633272,202.49,202.46,4.9374]
[1738829315101,0.03633272,202.49,202.44,0.03487514]
[1738829315702,0.03633272,202.49,202.45,4.9376]
[1738829316800,0.03633272,202.49,202.44,0.03487514]
[1738829317198,0.03633272,202.49,202.46,21.06388395]
[1738829317703,0.03633272,202.49,202.48,4.937]
[1738829321709,1.4812,202.58,202.52,4.9358]
[1738829321903,1.4812,202.58,202.5,21.06388395]
[1738829322513,1.4812,202.58,202.53,4.9356]
[1738829322716,1.4812,202.58,202.46,21.06388395]
[1738829323014,1.51875387,202.58,202.53,0.03807691]
[1738829323819,4.9351,202.56,202.53,0.03807691]
[1738829324109,1.51875387,202.58,202.53,0.03807691]
[1738829324318,4.9355,202.54,202.53,0.03807691]
[1738829325216,4.9353,202.55,202.53,0.03807691]
[1738829325417,1.51875387,202.58,202.53,0.03807691]
[1738829325623,1.51875387,202.58,202.42,21.06388395]
[1738829325813,4.9363,202.51,202.42,21.06388395]
[1738829326118,1.4812,202.58,202.45,4.9377]
[1738829326416,4.9355,202.54,202.42,21.06388395]
[1738829326618,0.03543319,202.52,202.48,0.03338987]
[1738829327318,0.03543319,202.52,202.49,4.9366]
[1738829327618,0.03543319,202.52,202.48,0.03338987]
[1738829333323,4.97153319,202.52,202.48,0.03338987]
[1738829334017,4.9363,202.51,202.48,0.03338987]
[1738829334221,0.03543319,202.52,202.48,0.03338987]
[1738829335725,0.03543319,202.52,202.39,21.06388395]
[1738829336020,24.72388395,202.56,202.39,21.06388395]
[1738829336621,4.9363,202.51,202.42,18.10701511]
[1738829336822,0.03566888,202.5,202.45,0.03576792]
[1738829337519,4.97236888,202.5,202.45,0.03576792]
[1738829338517,0.03566888,202.5,202.45,0.03576792]
[1738829338718,0.03566888,202.5,202.45,13.20438303]
[1738829340021,0.03566888,202.5,202.45,0.03576792]
[1738829341129,13.16861511,202.49,202.36,13.16861511]
[1738829341526,13.16861511,202.49,202.36,18.10851511]
[1738829342335,4.9381,202.44,202.4,0.03499092]
[1738829343229,0.03248013,202.45,202.4,0.03499092]
[1738829348629,0.03248013,202.45,202.4,4.97389092]
[1738829349729,0.03248013,202.45,202.41,4.9387]
[1738829350638,0.03248013,202.45,202.42,4.9384]
[1738829351040,0.03248013,202.45,202.4,0.03499092]
[1738829351243,0.03248013,202.45,202.44,4.938]
[1738829353043,0.03248013,202.45,202.43,4.9382]
[1738829353543,0.03248013,202.45,202.4,0.03499092]
[1738829354038,4.938,202.44,202.41,27.39267186]
[1738829354645,4.97018013,202.45,202.41,27.39267186]
[1738829355143,0.03248013,202.45,202.41,27.39267186]
[1738829356144,4.9382,202.43,202.41,27.39267186]
[1738829356344,0.03248013,202.45,202.41,27.39267186]
[1738829356741,1.53768013,202.45,202.4,0.03499092]
[1738829356945,6.47558013,202.45,202.4,0.03499092]
[1738829358040,1.53768013,202.45,202.4,0.03499092]
[1738829359644,0.03248013,202.45,202.4,0.03499092]
[1738829361239,0.03248013,202.45,202.4,4.97389092]
[1738829361444,0.03248013,202.45,202.4,0.03499092]
[1738829361845,0.03248013,202.45,202.41,4.9386]
[1738829362744,0.03248013,202.45,202.43,4.9381]
[1738829368952,0.03248013,202.45,202.44,4.938]
[1738829370355,0.03248013,202.45,202.42,13.16861511]
[1738829370646,0.03248013,202.45,202.43,4.9382]
[1738829370852,4.97028013,202.45,202.4,0.03499092]
[1738829371248,0.03248013,202.45,202.4,0.03499092]
[1738829372853,4.9381,202.44,202.4,0.03499092]
[1738829373053,0.03248013,202.45,202.4,0.03499092]
[1738829373948,4.9382,202.43,202.4,0.03499092]
[1738829374352,0.03248013,202.45,202.4,0.03499092]
[1738829374656,4.9381,202.44,202.4,0.03499092]
[1738829375860,0.03248013,202.45,202.4,0.03499092]
[1738829376067,13.16861511,202.43,202.33,40.56128697]
[1738829376256,13.16861511,202.43,202.33,27.39267186]
[1738829376657,4.9393,202.39,202.33,27.39267186]
[1738829377262,0.0326025,202.38,202.34,0.03444747]
[1738829378763,4.9399,202.36,202.34,0.03444747]
[1738829379762,4.9722025,202.38,202.34,0.03444747]
[1738829380160,4.9397,202.37,202.34,0.03444747]
[1738829382063,0.0326025,202.38,202.34,0.03444747]
[1738829389561,0.0326025,202.38,202.36,4.9397]
[1738829390063,0.0326025,202.38,202.34,4.97474747]
[1738829393168,0.0326025,202.38,202.35,4.9401]
[1738829397167,0.0326025,202.38,202.34,4.97484747]
[1738829397361,0.0326025,202.38,202.34,0.03444747]
[1738829398360,4.9402,202.35,202.34,0.03444747]
[1738829398956,4.9406,202.34,202.28,4.9418]
[1738829399161,16.27611511,202.37,202.27,27.39267186]
[1738829400268,4.9407,202.33,202.3,0.03689309]
[1738829400566,0.03804144,202.34,202.27,27.39267186]
[1738829400860,4.9409,202.32,202.27,27.39267186]
[1738829401057,0.03804144,202.34,202.27,27.39267186]
[1738829401261,13.20665655,202.34,202.27,27.39267186]
[1738829401563,4.9407,202.33,202.27,27.39267186]
[1738829401759,4.9407,202.33,202.28,0.03335131]
[1738829404769,18.14705655,202.34,202.28,0.03335131]
[1738829404964,4.97844144,202.34,202.28,0.03335131]
[1738829405267,0.03804144,202.34,202.28,0.03335131]
[1738829405459,0.03804144,202.34,202.3,4.9414]
[1738829406267,0.03804144,202.34,202.31,4.9411]
[1738829406463,0.03804144,202.34,202.28,0.03335131]
[1738829407364,197.85104528,202.46,202.33,13.16861511]
[1738829407575,4.6096,202.45,202.33,13.16861511]
[1738829407869,4.6096,202.45,202.23,6.84126916]
[1738829407870,13.16861511,202.4,202.27,13.16861511]
[1738829408571,0.03450107,202.36,202.31,0.03697852]
[1738829408770,0.03450107,202.36,202.31,4.97807852]
[1738829408967,0.03450107,202.36,202.31,0.03697852]
[1738829409771,0.03450107,202.36,202.33,4.9404]
[1738829409978,0.03450107,202.36,202.31,0.03697852]
[1738829410568,0.03450107,202.36,202.32,4.9409]
[1738829411669,0.03450107,202.36,202.35,4.9402]
[1738829431784,0.03450107,202.36,202.34,8.43611191]
[1738829431983,0.03450107,202.36,202.32,8.43611191]
[1738829432994,4.9402,202.35,202.32,8.43611191]
[1738829433183,0.03450107,202.36,202.34,8.43611191]
[1738829434394,0.03450107,202.36,202.34,13.37641191]
[1738829434690,0.03450107,202.36,202.32,8.43611191]
[1738829435789,0.03450107,202.36,202.32,13.37681191]
[1738829436992,0.03450107,202.36,202.34,13.37641191]
[1738829437187,0.03450107,202.36,202.34,8.43611191]
[1738829438588,0.03450107,202.36,202.34,13.37651191]
[1738829439385,0.03450107,202.36,202.31,0.03697852]
[1738829439591,8.43611191,202.33,202.31,0.03697852]
[1738829439792,8.43611191,202.33,202.28,27.39267186]
[1738829440396,4.9409,202.32,202.28,27.39267186]
[1738829440995,4.9409,202.32,202.28,27.42387452]
[1738829441196,13.37681191,202.33,202.28,27.42387452]
[1738829442092,12.93541191,202.35,202.28,20.58260536]
[1738829442296,12.93541191,202.35,202.28,0.03120266]
[1738829442498,12.93541191,202.35,202.28,8.46731457]
[1738829443301,17.87561191,202.35,202.28,13.40891457]
[1738829444700,12.93541191,202.35,202.29,4.9415]
[1738829446698,4.4993,202.35,202.3,13.37741191]
[1738829446898,4.4993,202.35,202.3,8.43611191]
[1738829447907,4.4993,202.35,202.31,4.9411]
[1738829448203,4.4993,202.35,202.3,8.43611191]
[1738829448799,0.03450107,202.36,202.33,4.9406]
[1738829449004,0.03450107,202.36,202.23,6.84126916]
[1738829449005,0.03450107,202.36,202.34,8.43611191]
[1738829449400,14.95431191,202.41,202.34,13.37651191]
[1738829449605,0.03749708,202.37,202.34,13.37651191]
[1738829450908,0.03749708,202.37,202.32,13.41227465]
[1738829451103,8.47360899,202.37,202.32,0.03536274]
[1738829453307,8.43611191,202.35,202.32,0.03536274]
[1738829453612,8.43611191,202.33,202.27,6.84126916]
[1738829454611,0.03169501,202.32,202.28,0.03246745]
[1738829455412,0.03169501,202.32,202.28,4.97426745]
[1738829455612,0.03169501,202.32,202.28,0.03246745]
[1738829456807,0.03169501,202.32,202.28,4.97426745]
[1738829458214,4.97259501,202.32,202.28,0.03246745]
[1738829460825,4.9412,202.31,202.28,0.03246745]
[1738829461026,1.51239501,202.32,202.28,0.03246745]
[1738829462122,1.51239501,202.32,202.3,4.9413]
[1738829462323,1.51239501,202.32,202.29,8.43611191]
[1738829462929,1.51239501,202.32,202.31,4.9411]
[1738829463318,1.51239501,202.32,202.29,8.43611191]
[1738829463526,0.03169501,202.32,202.31,8.43611191]
[1738829464324,0.03169501,202.32,202.29,8.43611191]
[1738829464826,0.03169501,202.32,202.3,4.9414]
[1738829465028,0.03169501,202.32,202.29,8.43611191]
[1738829465224,0.03169501,202.32,202.28,0.03246745]
[1738829465528,4.97269501,202.32,202.28,0.03246745]
[1738829465729,0.03169501,202.32,202.28,0.03246745]
[1738829466232,0.03169501,202.32,202.29,4.9415]
[1738829466531,0.03169501,202.32,202.29,8.43611191]
[1738829466725,0.03169501,202.32,202.29,13.37771191]
[1738829468831,0.03169501,202.32,202.29,4.9416]
[1738829469235,0.03169501,202.32,202.28,0.03246745]
[1738829472331,0.03169501,202.32,202.28,4.97436745]
[1738829474136,0.03169501,202.32,202.29,8.43611191]
[1738829475338,0.03169501,202.32,202.31,13.37721191]
[1738829479440,0.03169501,202.32,202.28,6.87373661]
[1738829480535,0.03169501,202.32,202.28,0.03246745]
[1738829481241,0.03169501,202.32,202.29,4.9416]
[1738829483041,0.03169501,202.32,202.29,13.37771191]
[1738829484941,0.03169501,202.32,202.28,0.03246745]
[1738829487046,0.03169501,202.32,202.28,4.97436745]
[1738829487245,4.9414,202.3,202.28,0.03246745]
[1738829487547,8.43611191,202.31,202.28,0.03246745]
[1738829488747,13.37731191,202.31,202.28,0.03246745]
[1738829490347,4.9414,202.3,202.28,0.03246745]
[1738829492149,13.37771191,202.29,202.28,0.03246745]
[1738829492345,8.43611191,202.29,202.21,6.84126916]
[1738829492546,8.43611191,202.26,202.21,6.84126916]
[1738829493049,8.43611191,202.26,202.2,27.39267186]
[1738829493447,0.03164339,202.25,202.21,8.46262325]
[1738829493747,0.03164339,202.25,202.23,8.43611191]
[1738829494849,0.03164339,202.25,202.24,4.9428]
[1738829495946,8.43611191,202.36,202.3,4.9413]
[1738829496146,4.9399,202.37,202.3,8.43611191]
[1738829497150,0.03423327,202.36,202.31,0.03327958]
[1738829497451,8.47034518,202.36,202.31,0.03327958]
[1738829499253,13.41024518,202.36,202.31,0.03327958]
[1738829500353,8.47034518,202.36,202.31,0.03327958]
[1738829500559,13.37661191,202.34,202.31,0.03327958]
[1738829505460,8.47034518,202.36,202.31,0.03327958]
[1738829508359,13.41034518,202.36,202.31,0.03327958]
[1738829512964,4.9402,202.35,202.31,0.03327958]
[1738829514967,8.47034518,202.36,202.31,0.03327958]
[1738829515266,4.9407,202.33,202.31,0.03327958]
[1738829515666,13.37651191,202.34,202.31,0.03327958]
[1738829516558,4.9404,202.34,202.31,0.03327958]
[1738829516960,13.41044518,202.36,202.31,0.03327958]
[1738829519269,4.9402,202.35,202.31,0.03327958]
[1738829520468,8.47034518,202.36,202.31,0.03327958]
[1738829520771,4.9409,202.33,202.31,0.03327958]
[1738829521170,8.43611191,202.32,202.24,40.77148377]
[1738829522174,13.37751191,202.3,202.24,40.77148377]
[1738829522370,13.41556604,202.3,202.26,0.02487515]
[1738829522570,13.37801191,202.28,202.26,0.02487515]
[1738829522771,8.43611191,202.28,202.26,0.02487515]
[1738829522971,8.43611191,202.28,202.24,27.39267186]
[1738829523171,8.43611191,202.26,202.24,27.39267186]
[1738829524575,4.9421,202.27,202.24,27.39267186]
[1738829524772,4.9421,202.27,202.23,54.80374054]
[1738829525074,4.9421,202.27,202.2,13.37981191]
[1738829525675,0.03601266,202.26,202.2,13.37981191]
[1738829525974,0.03601266,202.26,202.2,8.43611191]
[1738829526469,4.97841266,202.26,202.2,8.43611191]
[1738829527873,0.03601266,202.26,202.2,8.43611191]
[1738829528469,4.97841266,202.26,202.2,8.43611191]
[1738829529872,4.9429,202.24,202.2,8.43611191]
[1738829530175,4.9429,202.24,202.18,13.38041191]
[1738829532478,13.41452457,202.26,202.21,4.9435]
[1738829532679,4.9424,202.26,202.21,4.9435]
[1738829532977,4.97606253,202.26,202.21,4.9435]
[1738829533179,0.03366253,202.26,202.21,4.9435]
[1738829533678,4.9427,202.25,202.2,8.43611191]
[1738829533875,4.9427,202.25,202.18,13.38031191]
[1738829534877,4.9427,202.25,202.19,4.9441]
[1738829536970,8.46977444,202.26,202.18,8.43611191]
[1738829537175,8.46977444,202.26,202.2,4.9438]
[1738829541686,13.41217444,202.26,202.2,4.9438]
[1738829541981,8.46977444,202.26,202.18,8.43611191]
[1738829542186,13.37901191,202.24,202.18,13.38031191]
[1738829543388,13.37901191,202.24,202.19,4.944]
[1738829545585,13.37901191,202.24,202.18,8.43611191]
[1738829545790,4.9431,202.23,202.18,8.43611191]
[1738829546791,8.43611191,202.22,202.14,35.82878377]
[1738829546990,8.43611191,202.2,202.14,35.82878377]
[1738829547190,8.47227458,202.2,202.14,35.82878377]
[1738829547489,8.47227458,202.2,202.14,8.43611191]
[1738829547887,13.41607458,202.2,202.15,4.945]
[1738829549090,8.47227458,202.2,202.15,4.945]
[1738829549387,0.03616267,202.2,202.17,4.9445]
[1738829549588,0.03616267,202.2,202.16,8.43611191]
[1738829550791,0.03616267,202.2,202.17,4.9445]
[1738829551191,0.03616267,202.2,202.14,8.43611191]
[1738829551389,0.03616267,202.2,202.15,4.945]
[1738829551588,8.47227458,202.2,202.15,4.945]
[1738829552889,8.47227458,202.2,202.13,4.9454]
[1738829553094,8.47227458,202.2,202.12,8.43611191]
[1738829554795,4.9443,202.18,202.13,4.9455]
[1738829558191,8.43611191,202.18,202.12,8.43611191]
[1738829558395,8.43611191,202.14,202.1,27.39267186]
[1738829558689,8.43611191,202.12,202.1,27.39267186]
[1738829559797,4.946,202.11,202.1,27.39267186]
[1738829560196,8.43611191,202.12,202.1,27.39267186]
[1738829561898,13.38191191,202.12,202.06,4.9472]
[1738829562396,4.9461,202.11,202.04,13.38371191]
[1738829562899,0.03717098,202.1,202.04,13.38371191]
[1738829563100,0.03717098,202.1,202.04,8.43611191]
[1738829563397,0.03717098,202.1,202.06,4.9471]
[1738829564400,0.03717098,202.1,202.07,4.947]
[1738829567699,0.03717098,202.1,202.08,4.9467]
[1738829567907,0.03717098,202.1,202.08,8.43611191]
[1738829568812,0.03717098,202.1,202.09,4.9465]
[1738829569001,0.03717098,202.1,202.04,8.43611191]
[1738829569200,8.43611191,202.12,202.04,8.43611191]
[1738829569396,0.03481117,202.09,202.04,8.43611191]
[1738829570406,0.03481117,202.09,202.07,4.947]
[1738829571707,0.03481117,202.09,202.06,4.9472]
[1738829579912,8.43611191,202.08,202.05,4.9474]
[1738829580216,8.43611191,202.08,202.02,8.43611191]
[1738829580412,8.43611191,202.08,202.04,4.9477]
[1738829580707,13.38291191,202.08,202.0,8.43611191]
[1738829580907,8.43611191,202.06,202.01,4.9484]
[1738829581115,8.43611191,202.04,201.97,6.84126916]
[1738829581612,0.03767907,202.03,201.99,4.9487]
[1738829584814,0.03767907,202.03,202.0,8.43611191]
[1738829585510,0.03767907,202.03,202.01,4.9485]
[1738829586309,0.03767907,202.03,201.98,8.43611191]
[1738829586508,0.03767907,202.03,201.99,4.9487]
[1738829590814,0.03767907,202.03,201.98,8.43611191]
[1738829591013,0.03767907,202.03,202.02,4.9482]
[1738829591213,0.03767907,202.03,202.02,13.38431191]
[1738829596720,0.03767907,202.03,202.01,4.9485]
[1738829598814,0.03767907,202.03,202.02,4.9482]
[1738829599424,0.03767907,202.03,202.02,13.38431191]
[1738829617034,7.907e-05,202.03,202.02,13.38431191]
[1738829617239,4.4913,202.12,202.08,4.9466]
[1738829617439,4.4913,202.12,202.09,8.43611191]
[1738829617836,4.4913,202.12,202.08,4.9466]
[1738829618239,4.4913,202.12,202.07,8.43611191]
[1738829618537,4.52812896,202.12,202.08,0.03767907]
[1738829619747,4.52812896,202.12,202.09,4.9464]
[1738829620941,3.02672896,202.12,202.09,4.9464]
[1738829621144,11.46284087,202.12,202.08,0.03767907]
[1738829621345,8.43611191,202.1,202.08,0.03767907]
[1738829622434,4.9465,202.09,202.08,0.03767907]
[1738829624549,4.9463,202.1,202.08,0.03767907]
[1738829626349,11.46284087,202.12,202.08,0.03767907]
[1738829626650,3.02672896,202.12,202.08,4.98437907]
[1738829627250,3.02672896,202.12,202.08,0.03767907]
[1738829628756,7.97252896,202.12,202.08,0.03767907]
[1738829629850,3.02672896,202.12,202.08,4.98437907]
[1738829630246,0.03682896,202.12,202.08,0.03767907]
[1738829630450,0.03682896,202.12,202.11,13.38211191]
[1738829630856,0.03682896,202.12,202.09,8.43611191]
[1738829631057,0.03682896,202.12,202.08,0.03767907]
[1738829637550,0.03682896,202.12,202.08,4.98437907]
[1738829639958,4.98272896,202.12,202.08,0.03767907]
[1738829640159,13.41884087,202.12,202.08,0.03767907]
[1738829640359,3.1324,202.11,202.08,0.03767907]
[1738829640757,4.9465,202.09,202.05,6.84126916]
[1738829641154,8.43611191,202.1,202.05,6.84126916]
[1738829641857,4.9466,202.09,202.05,6.84126916]
[1738829642057,3.1324,202.11,202.05,6.84126916]
[1738829642465,8.0787,202.11,202.05,11.78866916]
[1738829643766,4.9464,202.1,202.05,4.9474]
[1738829644060,4.9464,202.1,202.03,8.43611191]
[1738829644266,4.9464,202.1,202.04,4.9477]
[1738829645157,4.9466,202.09,202.04,4.9477]
[1738829646261,4.9466,202.09,202.05,8.43611191]
[1738829647065,3.1324,202.11,202.05,8.43611191]
[1738829647260,4.9463,202.1,202.05,13.38361191]
[1738829648867,4.9467,202.09,202.03,13.38391191]
[1738829649260,4.9789658,202.08,202.03,13.38391191]
[1738829649458,0.0319658,202.08,202.03,13.38391191]
[1738829650768,4.947,202.07,202.03,13.38391191]
[1738829651268,0.0319658,202.08,202.03,8.43611191]
[1738829651469,0.0319658,202.08,202.04,4.9477]
[1738829653671,0.0319658,202.08,202.05,13.38341191]
[1738829653862,0.0319658,202.08,202.05,8.43611191]
[1738829654068,0.0319658,202.08,202.07,8.43611191]
[1738829654572,0.0319658,202.08,202.05,8.43611191]
[1738829656776,0.0319658,202.08,202.05,13.38361191]
[1738829657975,0.0319658,202.08,202.06,4.9472]
[1738829659978,0.0319658,202.08,202.05,13.38351191]
[1738829661079,0.0319658,202.08,202.06,4.9471]
[1738829662079,0.0319658,202.08,202.07,4.947]
[1738829662279,0.0319658,202.08,202.05,8.43611191]
[1738829662681,0.0319658,202.08,202.05,13.38361191]
[1738829664683,23.26611191,202.06,201.98,82.56964659]
[1738829664981,188.18243017,202.07,201.97,122.76863217]
[1738829664982,8.43611191,201.99,201.97,122.76863217]
[1738829665183,13.38511191,201.99,201.97,122.76863217]
[1738829666081,8.43611191,201.99,201.97,82.60666327]
[1738829666284,4.9494,201.98,201.97,82.60666327]
[1738829667785,4.9494,201.98,201.96,107.95820337]
[1738829667987,8.43611191,201.97,201.96,107.95820337]
[1738829668185,8.43611191,201.97,201.96,63.62260236]
[1738829669788,8.43611191,201.97,201.91,4.9509]
[1738829669989,8.43611191,201.95,201.91,4.9509]
[1738829670481,8.46957296,201.95,201.91,4.9509]
[1738829672487,8.46957296,201.95,201.87,10.38151191]
[1738829672786,8.43611191,201.93,201.91,4.9504]
[1738829673487,8.46957296,201.95,201.91,4.9504]
[1738829678590,0.03346105,201.95,201.91,4.9504]
[1738829679188,0.03346105,201.95,201.93,8.43611191]
[1738829679591,0.03346105,201.95,201.94,4.9497]
[1738829683305,0.03346105,201.95,201.91,8.43611191]
[1738829684501,0.03346105,201.95,201.92,4.95]
[1738829684803,0.03346105,201.95,201.91,8.43611191]
[1738829685804,0.03346105,201.95,201.93,4.9499]
[1738829687501,0.03346105,201.95,201.93,13.38601191]
[1738829687707,0.03346105,201.95,201.94,4.9497]
[1738829693910,25.40966117,202.0,201.96,4.9491]
[1738829694311,4.9483,202.0,201.96,4.9491]
[1738829694609,33.84547308,202.01,201.96,4.9491]
[1738829695009,33.88143499,202.01,201.96,4.98130204]
[1738829695210,14.83,201.99,201.63,248.21447425]
[1738829695411,8.43611191,201.89,201.78,11.53281191]
[1738829695611,8.43611191,201.89,201.8,8.43611191]
[1738829696109,13.38711191,201.89,201.81,4.9527]
[1738829696305,0.03651171,201.87,201.81,4.9527]
[1738829697213,0.03651171,201.87,201.82,4.9526]
[1738829697711,0.03651171,201.87,201.82,13.38871191]
[1738829698008,0.03651171,201.87,201.82,8.43611191]